fUST/lending_fUST_20260101
["ID","MTS","AMOUNT","RATE_DAILY","PERIOD"]
[400226823,1767205841013,-500.0,0.00023835,2]
[400226825,1767205841024,-500.0,0.00023835,2]
[400226827,1767205841033,-500.0,0.00023835,2]
[400226829,1767205841041,-199.94664657,0.00023888,6]
[400226831,1767205841051,-231.01015328,0.00023888,17]
[400226833,1767205841061,-478.25220598,0.00023888,17]
[400226835,1767205841070,-332.24219281,0.00023888,6]
[400226837,1767205841079,-198.89714494,0.00023888,17]
[400226839,1767205841089,-705.18345983,0.000239,2]
[400226840,1767205841099,-705.18345977,0.000239,2]
[400226842,1767205841108,-705.18345977,0.000239,2]
[400226844,1767205841117,-705.18345977,0.000239,2]
[400226846,1767205841127,-705.18345977,0.000239,2]
[400226848,1767205841136,-705.18345977,0.000239,2]
[400226850,1767205841145,-705.18345977,0.000239,2]
[400226852,1767205841155,-705.18345977,0.000239,2]
[400226854,1767205841164,-151.0,0.000239,2]
[400226856,1767205841174,-705.18345977,0.00023948,2]
[400226858,1767205841184,-1733.59881032,0.00024,2]
[400226860,1767205841194,-465.14283166,0.00024,2]
[400226862,1767205841203,-478.25220598,0.0002403,25]
[400226864,1767205841213,-332.24219281,0.0002403,8]
[400226866,1767205841221,-500.0,0.00024109,2]
[400226868,1767205841231,-952.37,0.00024109,2]
[400226870,1767205841240,-762.25,0.00024109,2]
[400226872,1767205841249,-500.0,0.00024109,2]
[400226873,1767205841259,-500.0,0.00024109,2]
[400226875,1767205841268,-610.26,0.00024109,2]
[400226877,1767205841278,-574.21869989,0.00024109,2]
[400226879,1767205841288,-2796.18,0.00024109,2]
[400226881,1767205841297,-1167.82,0.00024109,2]
[400226883,1767205841306,-4966.71,0.00024109,2]
[400226885,1767205841316,-874.95,0.00024109,2]
[400226887,1767205841327,-2182.31,0.00024109,2]
[400226888,1767205841336,-9696.43,0.00024109,2]
[400226890,1767205841346,-500.0,0.00024109,2]
[400226892,1767205841355,-565.4,0.00024109,2]
[400226893,1767205841364,-500.0,0.00024109,2]
[400226895,1767205841374,-500.0,0.00024109,2]
[400226896,1767205841383,-500.0,0.00024109,2]
[400226897,1767205841392,-97978.17531579,0.00024142,2]
[400226898,1767205841402,-199.94664657,0.00024172,10]
[400226899,1767205841412,-231.01015328,0.00024172,32]
[400226900,1767205841421,-332.24219281,0.00024172,10]
[400226901,1767205841430,-478.25220598,0.00024172,32]
[400226902,1767205841439,-198.89714494,0.00024172,32]
[400226903,1767205841449,-945.46,0.000242,14]
[400226904,1767205841458,-8934.73,0.00024254,2]
[400226905,1767205841467,-765.83,0.00024286,30]
[400226906,1767205841476,-478.25220598,0.00024314,40]
[400226907,1767205841485,-332.24219281,0.00024314,12]
[400226908,1767205841494,-500.0,0.00024383,2]
[400226909,1767205841503,-952.37,0.00024383,2]
[400226910,1767205841513,-762.25,0.00024383,2]
[400226911,1767205841523,-500.0,0.00024383,2]
[400226912,1767205841532,-500.0,0.00024383,2]
[400226913,1767205841545,-610.26,0.00024383,2]
[400226914,1767205841556,-2796.18,0.00024383,2]
[400226915,1767205841565,-1167.82,0.00024383,2]
[400226916,1767205841575,-4966.71,0.00024383,2]
[400226917,1767205841586,-874.95,0.00024383,2]
[400226918,1767205841595,-2182.31,0.00024383,2]
[400226919,1767205841604,-9696.43,0.00024383,2]
[400226920,1767205841615,-500.0,0.00024383,2]
[400226921,1767205841625,-565.4,0.00024383,2]
[400226922,1767205841634,-500.0,0.00024383,2]
[400226923,1767205841644,-500.0,0.00024383,2]
[400226924,1767205841653,-500.0,0.00024383,2]
[400226925,1767205841662,-151.0,0.00024395,2]
[400226926,1767205841672,-710.3409084,0.00024454,2]
[400226927,1767205841682,-199.94664657,0.00024456,14]
[400226928,1767205841691,-231.01015328,0.00024456,48]
[400226929,1767205841700,-478.25220598,0.00024456,48]
[400226930,1767205841710,-332.24219281,0.00024456,14]
[400226931,1767205841718,-198.89714494,0.00024456,48]
[400226932,1767205841727,-332.24219281,0.00024598,16]
[400226933,1767205841736,-478.25220598,0.00024598,56]
[400226934,1767205841746,-1080.36507781,0.00024617,2]
[400226935,1767205841757,-117106.37508465,0.0002465,2]
[400226936,1767205841766,-513.6105239,0.0002465,2]
[400226937,1767205841776,-500.0,0.00024657,2]
[400226938,1767205841785,-952.37,0.00024657,2]
[400226939,1767205841795,-762.25,0.00024657,2]
[400226940,1767205841804,-500.0,0.00024657,2]
[400226941,1767205841814,-500.0,0.00024657,2]
[400226942,1767205841824,-610.26,0.00024657,2]
[400226943,1767205841833,-2796.18,0.00024657,2]
[400226944,1767205841843,-1167.82,0.00024657,2]
[400226945,1767205841852,-4966.71,0.00024657,2]
[400226946,1767205841862,-874.95,0.00024657,2]
[400226947,1767205841871,-2182.31,0.00024657,2]
[400226948,1767205841881,-9696.43,0.00024657,2]
[400226949,1767205841890,-500.0,0.00024657,2]
[400226950,1767205841899,-565.4,0.00024657,2]
[400226951,1767205841908,-500.0,0.00024657,2]
[400226952,1767205841917,-500.0,0.00024657,2]
[400226953,1767205841926,-500.0,0.00024657,2]
[400226954,1767205841935,-150.0,0.00024658,2]
[400226955,1767205841945,-150.0,0.00024658,2]
[400226956,1767205841954,-199.94664657,0.0002474,18]
[400226957,1767205841963,-231.01015328,0.0002474,63]
[400226958,1767205841972,-332.24219281,0.0002474,18]
[400226959,1767205841981,-478.25220598,0.0002474,63]
[400226960,1767205841991,-198.89714494,0.0002474,63]
[400226961,1767205842000,-3147.76375777,0.00024781,2]
[400226962,1767205842009,-239.68430878,0.000248,2]
[400226963,1767205842019,-199.94664655,0.00024846,30]
[400226964,1767205842029,-478.25220598,0.00024881,71]
[400226965,1767205842038,-332.24219281,0.00024881,20]
[400226966,1767205842048,-159.87,0.000249,7]
[400226967,1767205842057,-165.22,0.000249,7]
[400226968,1767205842066,-371114.733813,0.000249,2]
[400226969,1767205842076,-151.0,0.000249,7]
[400226970,1767205842085,-151.0,0.000249,7]
[400226971,1767205842095,-500.0,0.00024931,2]
[400226972,1767205842104,-952.37,0.00024931,2]
[400226973,1767205842114,-762.25,0.00024931,2]
[400226974,1767205842124,-500.0,0.00024931,2]
[400226975,1767205842133,-500.0,0.00024931,2]
[400226976,1767205842143,-610.26,0.00024931,2]
[400226978,1767205842152,-2796.18,0.00024931,2]
[400226979,1767205842162,-1167.82,0.00024931,2]
[400226980,1767205842171,-4966.71,0.00024931,2]
[400226983,1767205842180,-874.95,0.00024931,2]
[400226984,1767205842189,-2182.31,0.00024931,2]
[400226985,1767205842199,-9696.43,0.00024931,2]
[400226986,1767205842208,-500.0,0.00024931,2]
[400226987,1767205842217,-565.4,0.00024931,2]
[400226988,1767205842226,-500.0,0.00024931,2]
[400226989,1767205842235,-500.0,0.00024931,2]
[400226990,1767205842245,-500.0,0.00024931,2]
[400226991,1767205842255,-10392.29269205,0.00025,2]
[400226992,1767205842264,-30414.50219373,0.00025,15]
[400226993,1767205842274,-1041.66666667,0.00025,30]
[400226994,1767205842283,-199.94664657,0.00025023,22]
[400226995,1767205842292,-231.01015328,0.00025023,79]
[400226996,1767205842301,-478.25220598,0.00025023,79]
[400226997,1767205842310,-332.24219281,0.00025023,22]
[400226998,1767205842319,-198.89714494,0.00025023,79]
[400226999,1767205842330,-344.49084108,0.00025063,2]
[400227000,1767205842340,-368.13375305,0.00025083,2]
[400227001,1767205842349,-705.18345977,0.00025105,2]
[400227002,1767205842358,-478.25220598,0.00025165,86]
[400227003,1767205842367,-332.24219281,0.00025165,24]
[400227004,1767205842377,-579.57875916,0.000252,5]
[400227005,1767205842386,-500.0,0.00025205,2]
[400227006,1767205842395,-952.37,0.00025205,2]
[400227007,1767205842404,-762.25,0.00025205,2]
[400227008,1767205842414,-500.0,0.00025205,2]
[400227009,1767205842527,-610.26,0.00025205,2]
[400227010,1767205842536,-2796.18,0.00025205,2]
[400227011,1767205842549,-1167.82,0.00025205,2]
[400227012,1767205842558,-4966.71,0.00025205,2]
[400227013,1767205842568,-874.95,0.00025205,2]
[400227014,1767205842577,-2182.31,0.00025205,2]
[400227015,1767205842589,-9696.43,0.00025205,2]
[400227016,1767205842598,-500.0,0.00025205,2]
[400227017,1767205842616,-565.4,0.00025205,2]
[400227018,1767205842627,-500.0,0.00025205,2]
[400227019,1767205842636,-500.0,0.00025205,2]
[400227020,1767205842646,-500.0,0.00025205,2]
[400227021,1767205842655,-151.50509152,0.00025205,2]
[400227022,1767205842664,-199.94664657,0.00025307,26]
[400227023,1767205842674,-231.01015328,0.00025307,94]
[400227024,1767205842683,-332.24219281,0.00025307,26]
[400227025,1767205842697,-478.25220598,0.00025307,94]
[400227026,1767205842707,-198.89714494,0.00025307,94]
[400227027,1767205842716,-332.24219281,0.00025449,28]
[400227028,1767205842726,-478.25220598,0.00025449,102]
[400227029,1767205842736,-900.0,0.00025469,3]
[400227030,1767205842745,-500.0,0.00025479,2]
[400227031,1767205842755,-952.37,0.00025479,2]
[400227032,1767205842764,-762.25,0.00025479,2]
[400227033,1767205842774,-500.0,0.00025479,2]
[400227034,1767205842784,-610.26,0.00025479,2]
[400227035,1767205842793,-2796.18,0.00025479,2]
[400227036,1767205842803,-1167.82,0.00025479,2]
[400227037,1767205842813,-4966.71,0.00025479,2]
[400227039,1767205842822,-874.95,0.00025479,2]
[400227041,1767205842832,-2182.31,0.00025479,2]
[400227042,1767205842841,-9696.43,0.00025479,2]
[400227043,1767205842851,-500.0,0.00025479,2]
[400227044,1767205842861,-565.4,0.00025479,2]
[400227045,1767205842870,-500.0,0.00025479,2]
[400227046,1767205842879,-500.0,0.00025479,2]
[400227047,1767205842888,-500.0,0.00025479,2]
[400227048,1767205842898,-182262.81340394,0.000255,7]
[400227049,1767205842909,-1000.0,0.000255,2]
[400227051,1767205842918,-231.01015328,0.00025591,110]
[400227052,1767205842927,-478.25220598,0.00025591,110]
[400227054,1767205842936,-332.24219281,0.00025591,30]
[400227056,1767205842946,-500.0,0.00025753,2]
[400227057,1767205842955,-952.37,0.00025753,2]
[400227058,1767205842964,-762.25,0.00025753,2]
[400227060,1767205842974,-500.0,0.00025753,2]
[400227062,1767205842983,-610.26,0.00025753,2]
[400227064,1767205842993,-2796.18,0.00025753,2]
[400227066,1767205843002,-1167.82,0.00025753,2]
[400227068,1767205843013,-4966.71,0.00025753,2]
[400227070,1767205843023,-874.95,0.00025753,2]
[400227072,1767205843032,-2182.31,0.00025753,2]
[400227073,1767205843042,-9696.43,0.00025753,2]
[400227075,1767205843051,-500.0,0.00025753,2]
[400227077,1767205843061,-565.4,0.00025753,2]
[400227078,1767205843070,-500.0,0.00025753,2]
[400227079,1767205843079,-500.0,0.00025753,2]
[400227080,1767205843089,-500.0,0.00025753,2]
[400227081,1767205843100,-157.6,0.000258,2]
[400227082,1767205843110,-163.0,0.00025863,18]
[400227083,1767205843120,-39750.25710912,0.00026,10]
[400227084,1767205843130,-529.34920278,0.00026,2]
[400227085,1767205843139,-1041.66666667,0.00026,10]
[400227086,1767205843149,-1790.0223535,0.00026,30]
[400227087,1767205843159,-19489.81,0.00026,2]
[400227088,1767205843168,-161.0,0.00026,5]
[400227089,1767205843178,-1041.66666667,0.00026,7]
[400227090,1767205843187,-500.0,0.00026027,2]
[400227091,1767205843196,-952.37,0.00026027,2]
[400227092,1767205843206,-762.25,0.00026027,2]
[400227093,1767205843215,-500.0,0.00026027,2]
[400227094,1767205843225,-610.26,0.00026027,2]
[400227095,1767205843235,-2796.18,0.00026027,2]
[400227096,1767205843245,-1167.82,0.00026027,2]
[400227097,1767205843255,-4966.71,0.00026027,2]
[400227098,1767205843264,-874.95,0.00026027,2]
[400227099,1767205843275,-2182.31,0.00026027,2]
[400227100,1767205843285,-9696.43,0.00026027,2]
[400227101,1767205843294,-500.0,0.00026027,2]
[400227102,1767205843304,-565.4,0.00026027,2]
[400227103,1767205843314,-500.0,0.00026027,2]
[400227104,1767205843324,-500.0,0.00026027,2]
[400227105,1767205843334,-500.0,0.00026027,2]
[400227106,1767205843343,-3147.76375777,0.00026148,2]
[400227107,1767205843352,-151.0,0.00026253,2]
[400227108,1767205843362,-500.0,0.00026301,2]
[400227109,1767205843371,-952.37,0.00026301,2]
[400227110,1767205843381,-762.25,0.00026301,2]
[400227111,1767205843391,-500.0,0.00026301,2]
[400227112,1767205843400,-610.26,0.00026301,2]
[400227113,1767205843410,-2796.18,0.00026301,2]
[400227114,1767205843419,-1167.82,0.00026301,2]
[400227115,1767205843430,-4966.71,0.00026301,2]
[400227116,1767205843440,-874.95,0.00026301,2]
[400227117,1767205843449,-2182.31,0.00026301,2]
[400227118,1767205843459,-9696.43,0.00026301,2]
[400227119,1767205843468,-500.0,0.00026301,2]
[400227120,1767205843478,-565.4,0.00026301,2]
[400227121,1767205843488,-500.0,0.00026301,2]
[400227122,1767205843498,-500.0,0.00026301,2]
[400227123,1767205843507,-500.0,0.00026301,2]
[400227124,1767205843516,-1148.75,0.00026309,30]
[400227125,1767205843525,-168.0,0.00026351,2]
[400227126,1767205843535,-2000.0,0.00026397,7]
[400227127,1767205843550,-771.81271779,0.00026454,2]
[400227128,1767205843560,-500.0,0.00026575,2]
[400227129,1767205843570,-952.37,0.00026575,2]
[400227130,1767205843579,-762.25,0.00026575,2]
[400227131,1767205843590,-500.0,0.00026575,2]
[400227132,1767205843600,-610.26,0.00026575,2]
[400227133,1767205843610,-2796.18,0.00026575,2]
[400227135,1767205843620,-1167.82,0.00026575,2]
[400227136,1767205843629,-4966.71,0.00026575,2]
[400227138,1767205843639,-874.95,0.00026575,2]
[400227139,1767205843649,-2182.31,0.00026575,2]
[400227140,1767205843658,-9696.43,0.00026575,2]
[400227141,1767205843668,-565.44225153,0.00026575,2]
[400227142,1767205843677,-565.4,0.00026575,2]
[400227143,1767205843687,-500.0,0.00026575,2]
[400227144,1767205843696,-270.2574778,0.00026575,2]
[400227145,1767205843706,-500.0,0.00026575,2]
[400227146,1767205843715,-5000.0,0.00026621,2]
[400227147,1767205843724,-1022.564735,0.00026676,2]
[400227148,1767205843734,-1041.66666667,0.000268,7]
[400227149,1767205843744,-500.0,0.00026849,2]
[400227150,1767205843753,-952.37,0.00026849,2]
[400227151,1767205843762,-762.25,0.00026849,2]
[400227152,1767205843771,-500.0,0.00026849,2]
[400227153,1767205843781,-610.26,0.00026849,2]
[400227154,1767205843790,-2796.18,0.00026849,2]
[400227155,1767205843799,-1167.82,0.00026849,2]
[400227156,1767205843809,-4966.71,0.00026849,2]
[400227157,1767205843818,-874.95,0.00026849,2]
[400227158,1767205843828,-2182.31,0.00026849,2]
[400227159,1767205843837,-9696.43,0.00026849,2]
[400227160,1767205843847,-565.4,0.00026849,2]
[400227161,1767205843856,-316.2369689,0.00026849,2]
[400227162,1767205843865,-189.69114107,0.00026849,2]
[400227163,1767205843875,-462.83,0.00027123,2]
[400227164,1767205843884,-952.37,0.00027123,2]
[400227165,1767205843893,-762.25,0.00027123,2]
[400227166,1767205843902,-500.0,0.00027123,2]
[400227167,1767205843912,-610.26,0.00027123,2]
[400227168,1767205843922,-2796.18,0.00027123,2]
[400227169,1767205843931,-1167.82,0.00027123,2]
[400227170,1767205843941,-4966.71,0.00027123,2]
[400227171,1767205843950,-874.95,0.00027123,2]
[400227172,1767205843959,-2182.31,0.00027123,2]
[400227173,1767205843968,-9696.43,0.00027123,2]
[400227174,1767205843978,-565.4,0.00027123,2]
[400227175,1767205843988,-168.0,0.00027244,2]
[400227176,1767205843997,-12667.999999,0.0002739,2]
[400227177,1767205844006,-568.83559814,0.0002739,7]
[400227178,1767205844016,-150.0,0.0002739,2]
[400227179,1767205844025,-195.21556113,0.00027397,2]
[400227180,1767205844035,-351.38801003,0.00027397,2]
[400227181,1767205844045,-952.37,0.00027397,2]
[400227182,1767205844054,-171.58672452,0.00027397,2]
[400227183,1767205844065,-686.34689807,0.00027397,2]
[400227184,1767205844074,-1544.28052065,0.00027397,2]
[400227185,1767205844084,-762.25,0.00027397,2]
[400227186,1767205844093,-377.37156182,0.00027397,2]
[400227187,1767205844103,-500.0,0.00027397,2]
[400227188,1767205844113,-610.26,0.00027397,2]
[400227189,1767205844123,-2796.18,0.00027397,2]
[400227190,1767205844133,-1167.82,0.00027397,2]
[400227191,1767205844143,-4966.71,0.00027397,2]
[400227192,1767205844153,-874.95,0.00027397,2]
[400227193,1767205844162,-2182.31,0.00027397,2]
[400227194,1767205844172,-9696.43,0.00027397,2]
[400227195,1767205844182,-565.4,0.00027397,2]
[400227196,1767205844191,-299.0,0.00027397,2]
[400227197,1767205844201,-299.0,0.00027397,2]
[400227198,1767205844211,-299.0,0.00027397,2]
[400227199,1767205844220,-299.0,0.00027397,2]
[400227200,1767205844229,-299.0,0.00027397,2]
[400227201,1767205844239,-299.0,0.00027397,2]
[400227202,1767205844249,-299.0,0.00027397,2]
[400227203,1767205844259,-299.0,0.00027397,2]
[400227204,1767205844269,-299.0,0.00027397,2]
[400227205,1767205844279,-299.0,0.00027397,2]
[400227206,1767205844289,-299.0,0.00027397,2]
[400227207,1767205844299,-299.0,0.00027397,2]
[400227208,1767205844308,-299.0,0.00027397,2]
[400227209,1767205844319,-299.0,0.00027397,2]
[400227210,1767205844328,-299.0,0.00027397,2]
[400227211,1767205844337,-299.0,0.00027397,2]
[400227212,1767205844347,-299.0,0.00027397,2]
[400227213,1767205844356,-299.0,0.00027397,2]
[400227214,1767205844366,-299.0,0.00027397,2]
[400227215,1767205844375,-299.0,0.00027397,2]
[400227216,1767205844384,-299.0,0.00027397,2]
[400227217,1767205844394,-299.0,0.00027397,2]
[400227218,1767205844405,-299.0,0.00027397,2]
[400227219,1767205844415,-299.0,0.00027397,2]
[400227220,1767205844424,-299.0,0.00027397,2]
[400227221,1767205844434,-299.0,0.00027397,2]
[400227222,1767205844443,-299.0,0.00027397,2]
[400227223,1767205844453,-299.0,0.00027397,2]
[400227224,1767205844462,-299.0,0.00027397,2]
[400227225,1767205844472,-299.0,0.00027397,2]
[400227226,1767205844481,-299.0,0.00027397,2]
[400227227,1767205844490,-299.0,0.00027397,2]
[400227228,1767205844500,-906.127244,0.00027397,7]
[400227229,1767205844509,-906.127244,0.00027397,7]
[400227230,1767205844519,-906.127244,0.00027397,7]
[400227231,1767205844529,-906.127244,0.00027397,7]
[400227232,1767205844538,-805.861522,0.00027397,7]
[400227233,1767205844550,-805.861522,0.00027397,7]
[400227234,1767205844559,-182.784702,0.00027397,7]
[400227235,1767205844569,-805.861522,0.00027397,7]
[400227236,1767205844579,-805.861522,0.00027397,7]
[400227237,1767205844590,-151.0,0.00027397,7]
[400227238,1767205844600,-187.899686,0.00027397,7]
[400227239,1767205844610,-151.0,0.00027397,7]
[400227240,1767205844621,-151.0,0.00027397,7]
[400227241,1767205844631,-151.0,0.00027397,7]
[400227242,1767205844640,-209.486994,0.00027397,7]
[400227243,1767205844649,-151.0,0.00027397,7]
[400227244,1767205844660,-151.0,0.00027397,7]
[400227245,1767205844669,-151.278502,0.00027397,7]
[400227246,1767205844679,-1549.100689,0.00027397,7]
[400227247,1767205844689,-1549.100689,0.00027397,7]
[400227248,1767205844699,-1549.100689,0.00027397,7]
[400227249,1767205844708,-1549.100689,0.00027397,7]
[400227250,1767205844717,-151.371196,0.00027397,7]
[400227251,1767205844726,-193.357014,0.00027397,7]
[400227252,1767205844736,-193.357014,0.00027397,7]
[400227253,1767205844745,-193.357014,0.00027397,7]
[400227254,1767205844754,-193.357014,0.00027397,7]
[400227255,1767205844765,-151.0,0.00027397,7]
[400227256,1767205844774,-151.0,0.00027397,7]
[400227257,1767205844783,-179.18193,0.00027397,7]
[400227258,1767205844792,-151.0,0.00027397,7]
[400227259,1767205844801,-151.0,0.00027397,7]
[400227260,1767205844811,-151.0,0.00027397,7]
[400227261,1767205844821,-151.0,0.00027397,7]
[400227262,1767205844832,-151.0,0.00027397,7]
[400227263,1767205844841,-151.0,0.00027397,7]
[400227264,1767205844851,-178.593012,0.00027397,2]
[400227265,1767205844860,-151.0,0.00027397,7]
[400227266,1767205844870,-151.0,0.00027397,7]
[400227267,1767205844879,-221.765393,0.00027397,7]
[400227268,1767205844889,-151.0,0.00027397,7]
[400227269,1767205844898,-151.0,0.00027397,7]
[400227270,1767205844908,-151.0,0.00027397,7]
[400227271,1767205844917,-151.0,0.00027397,7]
[400227272,1767205844927,-151.0,0.00027397,7]
[400227273,1767205844937,-151.0,0.00027397,7]
[400227274,1767205844947,-300.511634,0.00027397,7]
[400227275,1767205844956,-314.451665,0.00027397,7]
[400227276,1767205844965,-349.221351,0.00027397,7]
[400227277,1767205844974,-314.451665,0.00027397,7]
[400227278,1767205844984,-349.221351,0.00027397,7]
[400227279,1767205844993,-314.451665,0.00027397,7]
[400227280,1767205845003,-349.221351,0.00027397,7]
[400227281,1767205845012,-160.429789,0.00027397,7]
[400227282,1767205845021,-314.451665,0.00027397,7]
[400227283,1767205845031,-349.221351,0.00027397,7]
[400227284,1767205845040,-151.0,0.00027397,7]
[400227285,1767205845050,-151.0,0.00027397,7]
[400227286,1767205845059,-151.0,0.00027397,7]
[400227287,1767205845068,-151.0,0.00027397,7]
[400227288,1767205845077,-151.0,0.00027397,7]
[400227289,1767205845087,-297.109657,0.00027397,7]
[400227290,1767205845096,-157.473906,0.00027397,7]
[400227291,1767205845106,-157.473906,0.00027397,7]
[400227292,1767205845115,-157.473906,0.00027397,7]
[400227293,1767205845125,-500.65812564,0.00027397,5]
[400227294,1767205845135,-150.58382148,0.00027397,5]
[400227295,1767205845145,-150.0,0.00027397,5]
[400227296,1767205845155,-945.46,0.000274,14]
[400227297,1767205845165,-180.038769,0.00027488,7]
[400227298,1767205845174,-156.003217,0.00027488,7]
[400227299,1767205845184,-151.0,0.00027488,7]
[400227302,1767205845292,-151.0,0.00027488,7]
[400227303,1767205845303,-151.0,0.00027488,7]
[400227304,1767205845314,-151.0,0.00027488,7]
[400227305,1767205845325,-151.0,0.00027488,7]
[400227306,1767205845334,-151.0,0.00027488,7]
[400227307,1767205845344,-151.0,0.00027488,7]
[400227308,1767205845353,-314.451665,0.00027488,7]
[400227309,1767205845363,-349.221351,0.00027488,7]
[400227310,1767205845372,-314.451665,0.00027488,7]
[400227311,1767205845382,-349.221351,0.00027488,7]
[400227313,1767205845391,-314.451665,0.00027488,7]
[400227315,1767205845400,-349.221351,0.00027488,7]
[400227317,1767205845409,-314.451665,0.00027488,7]
[400227318,1767205845418,-349.221351,0.00027488,7]
[400227319,1767205845427,-151.0,0.00027488,7]
[400227320,1767205845437,-151.0,0.00027488,7]
[400227321,1767205845447,-151.0,0.00027488,7]
[400227322,1767205845456,-157.473906,0.00027488,7]
[400227323,1767205845467,-157.473906,0.00027488,7]
[400227324,1767205845476,-157.473906,0.00027488,7]
[400227325,1767205845486,-6464.62555377,0.00027488,11]
[400227327,1767205845496,-5000.0,0.00027488,10]
[400227328,1767205845506,-5000.0,0.00027488,15]
[400227330,1767205845515,-5000.0,0.00027488,14]
[400227331,1767205845525,-5000.0,0.00027488,12]
[400227332,1767205845535,-5000.0,0.00027488,10]
[400227333,1767205845549,-3147.76375777,0.00027515,2]
[400227335,1767205845559,-1041.66666667,0.000276,7]
[400227336,1767205845568,-952.37,0.00027671,2]
[400227338,1767205845577,-762.25,0.00027671,2]
[400227339,1767205845587,-192.92,0.00027671,2]
[400227340,1767205845598,-610.26,0.00027671,2]
[400227341,1767205845608,-2796.18,0.00027671,2]
[400227343,1767205845618,-1167.82,0.00027671,2]
[400227344,1767205845628,-4966.71,0.00027671,2]
[400227346,1767205845638,-874.95,0.00027671,2]
[400227347,1767205845647,-2182.31,0.00027671,2]
[400227348,1767205845657,-9696.43,0.00027671,2]
[400227349,1767205845666,-565.4,0.00027671,2]
[400227350,1767205845676,-156.46,0.000277,7]
[400227351,1767205845685,-2000.0,0.00027889,7]
[400227352,1767205845694,-2000.0,0.00027898,7]
[400227353,1767205845704,-2000.0,0.00027906,7]
[400227354,1767205845713,-2000.0,0.00027915,7]
[400227355,1767205845722,-2000.0,0.00027924,7]
[400227356,1767205845732,-2000.0,0.00027933,7]
[400227357,1767205845741,-2000.0,0.00027942,7]
[400227358,1767205845751,-952.37,0.00027945,2]
[400227359,1767205845760,-762.25,0.00027945,2]
[400227360,1767205845770,-610.26,0.00027945,2]
[400227361,1767205845780,-2796.18,0.00027945,2]
[400227362,1767205845789,-1167.82,0.00027945,2]
[400227363,1767205845798,-4966.71,0.00027945,2]
[400227364,1767205845808,-874.95,0.00027945,2]
[400227365,1767205845817,-2182.31,0.00027945,2]
[400227366,1767205845826,-9696.43,0.00027945,2]
[400227367,1767205845835,-565.4,0.00027945,2]
[400227368,1767205845846,-152.36606131,0.00027945,5]
[400227369,1767205845855,-2000.0,0.0002795,7]
[400227370,1767205845864,-2000.0,0.00027959,7]
[400227371,1767205845873,-2000.0,0.00027968,7]
[400227372,1767205845882,-2000.0,0.00027977,7]
[400227373,1767205845891,-168.0,0.00027983,2]
[400227374,1767205845900,-2000.0,0.00027986,7]
[400227375,1767205845910,-2000.0,0.00027994,7]
[400227376,1767205845918,-1041.66666667,0.00028,10]
[400227377,1767205845928,-2000.0,0.00028003,7]
[400227378,1767205845937,-2000.0,0.00028012,7]
[400227379,1767205845947,-2000.0,0.00028021,7]
[400227380,1767205845956,-2000.0,0.0002803,7]
[400227381,1767205845966,-2000.0,0.00028038,7]
[400227382,1767205845975,-2000.0,0.00028047,7]
[400227383,1767205845985,-2000.0,0.00028056,7]
[400227384,1767205845994,-2000.0,0.00028065,7]
[400227385,1767205846003,-2000.0,0.00028074,7]
[400227386,1767205846012,-2000.0,0.00028082,7]